[Event "Reykjavik Open 2025"]
[Site "Reykjavik"]
[Date "2025.04.13"]
[Round "6.22"]
[White "Hagner, Bennet"]
[Black "Shafer, Logan C"]
[Result "1/2-1/2"]
[Annotator "ChessBase"]
[ECO "B15"]
[WhiteElo "2430"]
[BlackElo "2193"]
[PlyCount "77"]
[EventDate "2025.04.09"]
[EventType "swiss"]
[EventCountry "ISL"]
[SourceTitle "playchess.com"]
[Source "ChessBase"]
[SourceQuality "1"]
[TimeControl "40/5400+30:1800+30"]

1. e4 {[%emt 0:00:03]} c6 {[%emt 0:00:08]} 2. d4 {[%emt 0:00:06]} d5 {[%emt 0:00:04]} 3. Nc3 {[%emt 0:00:06]} dxe4 {[%emt 0:00:07]} 4. Nxe4 {[%emt 0:00:07]} Nf6 {[%emt 0:00:09]} 5. Nxf6+ {[%emt 0:00:06]} exf6 {[%emt 0:00:04]} 6. Be3 {[%emt 0:00:08]} Bd6 {[%emt 0:00:21]} 7. Bd3 {[%emt 0:00:08]} O-O {[%emt 0:00:59]} 8. Ne2 {[%emt 0:00:05]} Re8 {[%emt 0:00:36]} 9. Qd2 {[%emt 0:01:31]} Nd7 {[%emt 0:00:44]} 10. O-O-O {[%emt 0:00:56]} Nf8 {[%emt 0:01:45]} 11. d5 {[%emt 0:00:40]} c5 {[%emt 0:13:24]} 12. Bf4 {[%emt 0:04:14]} Ng6 {[%emt 0:03:47]} 13. Bxd6 {[%emt 0:05:13]} Qxd6 {[%emt 0:00:04]} 14. Bxg6 {[%emt 0:00:05]} hxg6 {[%emt 0:00:13]} 15. h4 {[%emt 0:22:30]} Qa6 {[%emt 0:15:50]} 16. Nc3 {[%emt 0:00:00]} b5 {[%emt 0:00:21]} 17. Rde1 {[%emt 0:07:12]} Rxe1+ {[%emt 0:12:37]} 18. Qxe1 {[%emt 0:04:16]} Bd7 {[%emt 0:09:10]} 19. Qe7 {[%emt 0:12:11]} b4 {[%emt 0:01:37]} 20. Nd1 {[%emt 0:00:09]} Qb5 {[%emt 0:09:01]} 21. Ne3 {[%emt 0:03:45]} Re8 {[%emt 0:02:05]} 22. Qd6 {[%emt 0:00:07]} c4 {[%emt 0:02:15]} 23. h5 {[%emt 0:09:04]} b3 {[%emt 0:01:52]} 24. axb3 {[%emt 0:01:21]} cxb3 {[%emt 0:00:48]} 25. c4 {[%emt 0:00:03]} Rc8 {[%emt 0:05:20]} 26. Kb1 {[%emt 0:01:12]} Qa4 {[%emt 0:07:57]} 27. Qa3 {[%emt 0:00:36]} Rxc4 {[%emt 0:04:33]} 28. Nxc4 {[%emt 0:00:14]} Qxc4 {[%emt 0:00:01]} 29. hxg6 {[%emt 0:11:40]} fxg6 {[%emt 0:00:08]} 30. d6 {[%emt 0:00:25]} a6 {[%emt 0:01:35]} 31. Ka1 {[%emt 0:01:06]} g5 {[%emt 0:02:17]} 32. Re1 {[%emt 0:03:05]} Qb5 {[%emt 0:00:55]} 33. f3 {[%emt 0:03:00]} g4 {[%emt 0:01:35]} 34. fxg4 {[%emt 0:02:17]} Bxg4 {[%emt 0:00:46]} 35. Rc1 {[%emt 0:02:35]} Bd7 {[%emt 0:00:13]} 36. Rd1 {[%emt 0:00:51]} Kh8 {[%emt 0:00:45]} 37. Rg1 {[%emt 0:02:50]} Kh7 {[%emt 0:01:08]} 38. Rc1 {[%emt 0:01:27]} Kg8 {[%emt 0:00:19]} 39. Qc5 {[%emt 0:01:31]} 1/2-1/2

[Event "Reykjavik Open 2025"]
[Site "Reykjavik"]
[Date "2025.04.13"]
[Round "6.23"]
[White "Gislason, Gudmundur"]
[Black "Lu, Miaoyi"]
[Result "0-1"]
[Annotator "ChessBase"]
[ECO "E01"]
[WhiteElo "2216"]
[BlackElo "2429"]
[PlyCount "64"]
[EventDate "2025.04.09"]
[EventType "swiss"]
[EventCountry "ISL"]
[SourceTitle "playchess.com"]
[Source "ChessBase"]
[SourceQuality "1"]
[TimeControl "40/5400+30:1800+30"]

1. d4 {[%emt 0:00:04]} Nf6 {[%emt 0:00:07]} 2. Nf3 {[%emt 0:00:06]} d5 {[%emt 0:00:10]} 3. c4 {[%emt 0:00:32]} e6 {[%emt 0:00:06]} 4. g3 {[%emt 0:01:11]} dxc4 {[%emt 0:08:01]} 5. Qa4+ {[%emt 0:01:43]} Bd7 {[%emt 0:06:05]} 6. Qxc4 {[%emt 0:00:12]} b5 {[%emt 0:00:04]} 7. Qc2 {[%emt 0:00:26]} Na6 {[%emt 0:00:09]} 8. Bg2 {[%emt 0:00:37]} c5 {[%emt 0:00:40]} 9. Ne5 {[%emt 0:17:02]} Rc8 {[%emt 0:01:15]} 10. O-O {[%emt 0:00:38]} cxd4 {[%emt 0:03:18]} 11. Qd1 {[%emt 0:00:17]} Nb4 {[%emt 0:11:08]} 12. Na3 {[%emt 0:01:21]} Bc5 {[%emt 0:01:26]} 13. Bg5 {[%emt 0:01:37]} h6 {[%emt 0:11:24]} 14. Bd2 {[%emt 0:25:53]} Nfd5 {[%emt 0:09:49]} 15. Rc1 {[%emt 0:14:25]} Qe7 {[%emt 0:06:39]} 16. Qb3 {[%emt 0:02:19]} a5 {[%emt 0:00:16]} 17. Bxd5 {[%emt 0:12:58]} a4 {[%emt 0:01:12]} 18. Rxc5 {[%emt 0:02:43]} axb3 {[%emt 0:01:41]} 19. Bxb4 {[%emt 0:02:55]} Rxc5 {[%emt 0:01:36]} 20. Bxb3 {[%emt 0:01:15]} Rxe5 {[%emt 0:02:24]} 21. Bxe7 {[%emt 0:00:34]} Kxe7 {[%emt 0:00:03]} 22. Re1 {[%emt 0:02:23]} Rc8 {[%emt 0:07:32]} 23. Nc2 {[%emt 0:00:43]} d3 {[%emt 0:00:22]} 24. exd3 {[%emt 0:00:21]} Rxe1+ {[%emt 0:00:05]} 25. Nxe1 {[%emt 0:00:32]} Rc1 {[%emt 0:00:09]} 26. Kf1 {[%emt 0:00:08]} Rb1 {[%emt 0:00:26]} 27. Ke2 {[%emt 0:00:17]} Rxb2+ {[%emt 0:00:46]} 28. Ke3 {[%emt 0:00:09]} Bc6 {[%emt 0:03:27]} 29. d4 {[%emt 0:00:51]} Bd5 {[%emt 0:01:10]} 30. Nd3 {[%emt 0:00:41]} Rb1 {[%emt 0:00:03]} 31. Nc5 {[%emt 0:01:34]} Bxb3 {[%emt 0:01:19]} 32. axb3 {[%emt 0:00:10]} Kd6 {[%emt 0:00:35]} 0-1

[Event "Reykjavik Open 2025"]
[Site "Reykjavik"]
[Date "2025.04.13"]
[Round "6.24"]
[White "Yankelevich, Lev"]
[Black "Martin, Nils"]
[Result "1-0"]
[Annotator "ChessBase"]
[ECO "C78"]
[WhiteElo "2413"]
[BlackElo "2181"]
[PlyCount "79"]
[EventDate "2025.04.09"]
[EventType "swiss"]
[EventCountry "ISL"]
[SourceTitle "playchess.com"]
[Source "ChessBase"]
[SourceQuality "1"]
[TimeControl "40/5400+30:1800+30"]

1. e4 {[%emt 0:12:33]} e5 {[%emt 0:00:08]} 2. Nf3 {[%emt 0:00:12]} Nc6 {[%emt 0:00:05]} 3. Bb5 {[%emt 0:00:02]} a6 {[%emt 0:00:12]} 4. Ba4 {[%emt 0:00:02]} Nf6 {[%emt 0:00:07]} 5. O-O {[%emt 0:00:10]} b5 {[%emt 0:00:06]} 6. Bb3 {[%emt 0:00:07]} Bb7 {[%emt 0:00:17]} 7. d3 {[%emt 0:03:11]} Bc5 {[%emt 0:00:10]} 8. Bg5 {[%emt 0:01:14]} h6 {[%emt 0:01:08]} 9. Be3 {[%emt 0:00:18]} d6 {[%emt 0:00:40]} 10. Nc3 {[%emt 0:01:42]} Rb8 {[%emt 0:14:09]} 11. a4 {[%emt 0:14:02]} Bc8 {[%emt 0:01:10]} 12. axb5 {[%emt 0:00:43]} axb5 {[%emt 0:00:07]} 13. h3 {[%emt 0:10:47]} O-O {[%emt 0:03:23]} 14. Qd2 {[%emt 0:00:37]} Qe7 {[%emt 0:16:40]} 15. Nd5 {[%emt 0:07:22]} Nxd5 {[%emt 0:00:40]} 16. exd5 {[%emt 0:02:46]} Nd4 {[%emt 0:01:05]} 17. Bxd4 {[%emt 0:00:54]} Bxd4 {[%emt 0:01:09]} 18. Nxd4 {[%emt 0:01:00]} exd4 {[%emt 0:00:03]} 19. Qf4 {[%emt 0:03:18]} Qg5 {[%emt 0:04:54]} 20. Qxg5 {[%emt 0:02:31]} hxg5 {[%emt 0:01:15]} 21. f4 {[%emt 0:00:11]} g4 {[%emt 0:03:18]} 22. hxg4 {[%emt 0:07:44]} Bxg4 {[%emt 0:00:12]} 23. Ra7 {[%emt 0:00:38]} Rfc8 {[%emt 0:01:28]} 24. f5 {[%emt 0:00:45]} Ra8 {[%emt 0:04:16]} 25. Rb7 {[%emt 0:01:28]} Rab8 {[%emt 0:01:57]} 26. Rxb8 {[%emt 0:00:09]} Rxb8 {[%emt 0:00:01]} 27. Rf4 {[%emt 0:00:14]} Bd1 {[%emt 0:00:11]} 28. Rxd4 {[%emt 0:02:21]} Ra8 {[%emt 0:01:37]} 29. Re4 {[%emt 0:01:25]} Ra1 {[%emt 0:01:07]} 30. Kf2 {[%emt 0:04:08]} f6 {[%emt 0:07:21]} 31. Re8+ {[%emt 0:03:26]} Kf7 {[%emt 0:00:47]} 32. Rc8 {[%emt 0:00:05]} Ra7 {[%emt 0:00:06]} 33. Ke3 {[%emt 0:00:15]} Rb7 {[%emt 0:00:20]} 34. Kf4 {[%emt 0:00:32]} Ke7 {[%emt 0:02:44]} 35. g4 {[%emt 0:00:19]} Kf7 {[%emt 0:00:05]} 36. Rh8 {[%emt 0:01:37]} Ra7 {[%emt 0:04:24]} 37. Rh1 {[%emt 0:00:07]} Ra1 {[%emt 0:00:12]} 38. c3 {[%emt 0:00:07]} Ra4+ {[%emt 0:00:14]} 39. Bxa4 {[%emt 0:00:11]} Bxa4 {[%emt 0:00:03]} 40. Rh8 {[%emt 0:00:25]} 1-0

[Event "Reykjavik Open 2025"]
[Site "Reykjavik"]
[Date "2025.04.13"]
[Round "6.25"]
[White "Garbuz, Vitaliy"]
[Black "Thorfinnsson, Bjorn"]
[Result "1/2-1/2"]
[Annotator "ChessBase"]
[ECO "C58"]
[WhiteElo "2203"]
[BlackElo "2386"]
[PlyCount "160"]
[EventDate "2025.04.09"]
[EventType "swiss"]
[EventCountry "ISL"]
[SourceTitle "playchess.com"]
[Source "ChessBase"]
[SourceQuality "1"]
[TimeControl "40/5400+30:1800+30"]

1. e4 {[%emt 0:16:59]} e5 {[%emt 0:00:00]} 2. Nf3 {[%emt 0:00:04]} Nc6 {[%emt 0:00:08]} 3. Bc4 {[%emt 0:00:08]} Nf6 {[%emt 0:02:05]} 4. Ng5 {[%emt 0:00:09]} d5 {[%emt 0:00:36]} 5. exd5 {[%emt 0:00:06]} Na5 {[%emt 0:00:36]} 6. Bb5+ {[%emt 0:00:08]} Bd7 {[%emt 0:00:05]} 7. Qe2 {[%emt 0:00:07]} Be7 {[%emt 0:00:05]} 8. Nf3 {[%emt 0:00:09]} O-O {[%emt 0:11:02]} 9. Bxd7 {[%emt 0:00:12]} Qxd7 {[%emt 0:06:27]} 10. Nxe5 {[%emt 0:00:19]} Qxd5 {[%emt 0:00:12]} 11. O-O {[%emt 0:00:27]} Bd6 {[%emt 0:00:17]} 12. Nf3 {[%emt 0:00:12]} Rfe8 {[%emt 0:00:55]} 13. Qd1 {[%emt 0:00:12]} Nc6 {[%emt 0:03:32]} 14. d3 {[%emt 0:00:48]} Nd4 {[%emt 0:01:02]} 15. Nxd4 {[%emt 0:03:41]} Qxd4 {[%emt 0:00:21]} 16. Nd2 {[%emt 0:00:25]} Ng4 {[%emt 0:15:04]} 17. Nf3 {[%emt 0:08:47]} Qf6 {[%emt 0:01:04]} 18. h3 {[%emt 0:08:39]} Ne5 {[%emt 0:01:09]} 19. Ng5 {[%emt 0:01:48]} Bf8 {[%emt 0:25:03]} 20. f4 {[%emt 0:13:06]} Nc6 {[%emt 0:00:38]} 21. f5 {[%emt 0:02:11]} Rad8 {[%emt 0:09:30]} 22. Qh5 {[%emt 0:09:24]} h6 {[%emt 0:00:02]} 23. Ne4 {[%emt 0:00:53]} Qd4+ {[%emt 0:00:05]} 24. Kh1 {[%emt 0:00:24]} Rxe4 {[%emt 0:00:56]} 25. dxe4 {[%emt 0:01:06]} Qxe4 {[%emt 0:00:04]} 26. Bf4 {[%emt 0:03:26]} Qxc2 {[%emt 0:00:18]} 27. Rad1 {[%emt 0:03:14]} Rxd1 {[%emt 0:04:14]} 28. Rxd1 {[%emt 0:00:28]} Qxb2 {[%emt 0:00:07]} 29. Rd7 {[%emt 0:00:55]} Qxa2 {[%emt 0:00:26]} 30. Rxc7 {[%emt 0:00:33]} Nd4 {[%emt 0:01:08]} 31. Qd1 {[%emt 0:16:53]} Qf2 {[%emt 0:03:31]} 32. Bh2 {[%emt 0:03:14]} Nxf5 {[%emt 0:00:43]} 33. Rc8 {[%emt 0:00:14]} Qe3 {[%emt 0:07:04]} 34. Qd8 {[%emt 0:05:26]} Qa3 {[%emt 0:02:55]} 35. Qd7 {[%emt 0:00:25]} g6 {[%emt 0:01:42]} 36. Be5 {[%emt 0:01:36]} a5 {[%emt 0:02:32]} 37. Rc7 {[%emt 0:00:58]} Qa2 {[%emt 0:02:28]} 38. Rc8 {[%emt 0:00:01]} Qa3 {[%emt 0:00:09]} 39. Rc7 {[%emt 0:00:59]} Qa2 {[%emt 0:01:05]} 40. Rc8 {[%emt 0:00:06]} Qa3 {[%emt 0:00:35]} 41. Qd8 {[%emt 0:21:08]} Qe7 {[%emt 0:06:02]} 42. g4 {[%emt 0:09:40]} Qxd8 {[%emt 0:09:13]} 43. Rxd8 {[%emt 0:00:01]} Ng7 {[%emt 0:00:08]} 44. Ra8 {[%emt 0:01:14]} Ne6 {[%emt 0:01:56]} 45. Rxa5 {[%emt 0:00:53]} f6 {[%emt 0:02:10]} 46. Bxf6 {[%emt 0:00:04]} Kf7 {[%emt 0:00:07]} 47. Bc3 {[%emt 0:00:51]} Bc5 {[%emt 0:00:43]} 48. Ra8 {[%emt 0:00:35]} Nf4 {[%emt 0:01:25]} 49. h4 {[%emt 0:01:09]} h5 {[%emt 0:01:38]} 50. gxh5 {[%emt 0:00:28]} gxh5 {[%emt 0:00:14]} 51. Rh8 {[%emt 0:00:27]} Bf2 {[%emt 0:07:26]} 52. Bd2 {[%emt 0:00:36]} Ng6 {[%emt 0:00:23]} 53. Rxh5 {[%emt 0:00:26]} Nxh4 {[%emt 0:00:48]} 54. Rh7+ {[%emt 0:00:33]} Ke6 {[%emt 0:00:26]} 55. Rxb7 {[%emt 0:00:29]} Bc5 {[%emt 0:00:06]} 56. Rh7 {[%emt 0:00:27]} Nf3 {[%emt 0:00:25]} 57. Bc3 {[%emt 0:00:03]} Ng5 {[%emt 0:01:34]} 58. Rh5 {[%emt 0:00:28]} Kf5 {[%emt 0:00:16]} 59. Bd2 {[%emt 0:00:15]} Be7 {[%emt 0:00:05]} 60. Kg2 {[%emt 0:00:09]} Kg6 {[%emt 0:00:10]} 61. Rh8 {[%emt 0:00:12]} Bf6 {[%emt 0:00:18]} 62. Ra8 {[%emt 0:00:29]} Ne4 {[%emt 0:00:15]} 63. Be3 {[%emt 0:00:11]} Kf5 {[%emt 0:00:15]} 64. Ra5+ {[%emt 0:00:06]} Kg4 {[%emt 0:00:28]} 65. Ra4 {[%emt 0:00:04]} Kf5 {[%emt 0:00:05]} 66. Kf3 {[%emt 0:00:10]} Ng5+ {[%emt 0:00:41]} 67. Bxg5 {[%emt 0:00:10]} Bxg5 {[%emt 0:00:05]} 68. Ra5+ {[%emt 0:00:04]} Kf6 {[%emt 0:00:19]} 69. Kg4 {[%emt 0:00:03]} Be3 {[%emt 0:00:14]} 70. Kf3 {[%emt 0:00:08]} Bg1 {[%emt 0:00:16]} 71. Ke4 {[%emt 0:00:06]} Ke6 {[%emt 0:00:13]} 72. Ra6+ {[%emt 0:00:04]} Kd7 {[%emt 0:00:09]} 73. Rg6 {[%emt 0:00:10]} Bf2 {[%emt 0:00:51]} 74. Kd5 {[%emt 0:00:11]} Kc7 {[%emt 0:00:12]} 75. Rc6+ {[%emt 0:00:22]} Kb7 {[%emt 0:00:07]} 76. Rc2 {[%emt 0:00:22]} Be3 {[%emt 0:00:31]} 77. Kd6 {[%emt 0:00:23]} Bf4+ {[%emt 0:00:46]} 78. Kd5 {[%emt 0:00:06]} Be3 {[%emt 0:00:09]} 79. Rb2+ {[%emt 0:00:06]} Ka8 {[%emt 0:01:08]} 80. Kc6 {[%emt 0:00:27]} Bd4 {[%emt 0:01:02]} 1/2-1/2

[Event "Reykjavik Open 2025"]
[Site "Reykjavik"]
[Date "2025.04.13"]
[Round "6.26"]
[White "Clyde, Jordan"]
[Black "Akesson, Ralf"]
[Result "0-1"]
[Annotator "ChessBase"]
[ECO "A60"]
[WhiteElo "2095"]
[BlackElo "2361"]
[PlyCount "114"]
[EventDate "2025.04.09"]
[EventType "swiss"]
[EventCountry "ISL"]
[SourceTitle "playchess.com"]
[Source "ChessBase"]
[SourceQuality "1"]
[TimeControl "40/5400+30:1800+30"]

1. d4 {[%emt 0:00:14]} Nf6 {[%emt 0:02:33]} 2. g3 {[%emt 0:03:29]} c5 {[%emt 0:01:01]} 3. d5 {[%emt 0:01:33]} e6 {[%emt 0:01:48]} 4. c4 {[%emt 0:05:06]} exd5 {[%emt 0:00:46]} 5. cxd5 {[%emt 0:00:07]} b5 {[%emt 0:00:59]} 6. Bg2 {[%emt 0:06:36]} d6 {[%emt 0:00:57]} 7. e4 {[%emt 0:01:43]} Nbd7 {[%emt 0:12:52]} 8. Ne2 {[%emt 0:15:46]} g6 {[%emt 0:05:03]} 9. O-O {[%emt 0:16:32]} Bg7 {[%emt 0:00:17]} 10. Bf4 {[%emt 0:03:05]} Qe7 {[%emt 0:03:34]} 11. Nec3 {[%emt 0:00:18]} Rb8 {[%emt 0:09:41]} 12. a4 {[%emt 0:03:53]} a6 {[%emt 0:05:14]} 13. axb5 {[%emt 0:00:04]} axb5 {[%emt 0:00:10]} 14. Qe2 {[%emt 0:11:52]} c4 {[%emt 0:04:11]} 15. Na3 {[%emt 0:00:05]} Nh5 {[%emt 0:22:56]} 16. Naxb5 {[%emt 0:03:06]} Nxf4 {[%emt 0:00:11]} 17. gxf4 {[%emt 0:00:04]} O-O {[%emt 0:03:47]} 18. Qxc4 {[%emt 0:03:09]} Qf6 {[%emt 0:02:33]} 19. Ne2 {[%emt 0:01:05]} Bh6 {[%emt 0:06:26]} 20. Rfb1 {[%emt 0:11:21]} Bxf4 {[%emt 0:00:34]} 21. Nxf4 {[%emt 0:00:04]} Qxf4 {[%emt 0:00:05]} 22. Nd4 {[%emt 0:00:28]} Ne5 {[%emt 0:02:33]} 23. Qc3 {[%emt 0:00:24]} Bd7 {[%emt 0:02:08]} 24. Ne2 {[%emt 0:02:52]} Qh4 {[%emt 0:02:14]} 25. f4 {[%emt 0:01:31]} Ng4 {[%emt 0:02:22]} 26. Qg3 {[%emt 0:00:06]} Qd8 {[%emt 0:00:28]} 27. h3 {[%emt 0:02:07]} Qb6+ {[%emt 0:00:43]} 28. Kh1 {[%emt 0:00:06]} Ne3 {[%emt 0:01:39]} 29. Qf2 {[%emt 0:03:58]} Bb5 {[%emt 0:02:16]} 30. b4 {[%emt 0:01:07]} Nxg2 {[%emt 0:01:53]} 31. Kxg2 {[%emt 0:00:29]} Bd3 {[%emt 0:00:10]} 32. Rb2 {[%emt 0:02:19]} Bxe4+ {[%emt 0:00:10]} 33. Kg3 {[%emt 0:00:06]} Bxd5 {[%emt 0:02:49]} 34. Rd1 {[%emt 0:01:12]} Be6 {[%emt 0:00:45]} 35. Nc3 {[%emt 0:00:59]} Rfc8 {[%emt 0:00:46]} 36. Qd2 {[%emt 0:00:47]} Rc4 {[%emt 0:00:22]} 37. b5 {[%emt 0:00:35]} Rbc8 {[%emt 0:00:15]} 38. Ne2 {[%emt 0:00:19]} d5 {[%emt 0:00:32]} 39. Kg2 {[%emt 0:00:40]} Re4 {[%emt 0:01:38]} 40. Nc3 {[%emt 0:00:32]} Rec4 {[%emt 0:00:36]} 41. Ne2 {[%emt 0:07:09]} Bf5 {[%emt 0:05:33]} 42. Nd4 {[%emt 0:01:38]} Be4+ {[%emt 0:00:25]} 43. Kh2 {[%emt 0:01:04]} Qf6 {[%emt 0:05:39]} 44. Qf2 {[%emt 0:09:28]} Rc1 {[%emt 0:05:54]} 45. Rbd2 {[%emt 0:03:34]} R8c3 {[%emt 0:02:18]} 46. Ne2 {[%emt 0:01:52]} Rxd1 {[%emt 0:00:32]} 47. Rxd1 {[%emt 0:01:09]} Rc2 {[%emt 0:01:07]} 48. Qe3 {[%emt 0:07:12]} Qb2 {[%emt 0:00:44]} 49. Re1 {[%emt 0:00:07]} Qxb5 {[%emt 0:00:41]} 50. Kg1 {[%emt 0:00:10]} Qb2 {[%emt 0:01:03]} 51. Kf1 {[%emt 0:00:44]} Rd2 {[%emt 0:04:58]} 52. Kg1 {[%emt 0:02:03]} Bd3 {[%emt 0:01:28]} 53. Qe8+ {[%emt 0:00:21]} Kg7 {[%emt 0:00:06]} 54. f5 {[%emt 0:00:19]} Bxe2 {[%emt 0:01:36]} 55. f6+ {[%emt 0:00:40]} Qxf6 {[%emt 0:00:13]} 56. Rxe2 {[%emt 0:00:11]} Rd1+ {[%emt 0:00:33]} 57. Re1 {[%emt 0:00:34]} Qd4+ {[%emt 0:00:38]} 0-1

[Event "Reykjavik Open 2025"]
[Site "Reykjavik"]
[Date "2025.04.13"]
[Round "6.27"]
[White "Nguyen, Paul"]
[Black "Bekker, Stefan"]
[Result "0-1"]
[Annotator "ChessBase"]
[ECO "E11"]
[WhiteElo "1936"]
[BlackElo "2358"]
[PlyCount "70"]
[EventDate "2025.04.09"]
[EventType "swiss"]
[EventCountry "ISL"]
[SourceTitle "playchess.com"]
[Source "ChessBase"]
[SourceQuality "1"]
[TimeControl "40/5400+30:1800+30"]

1. d4 {[%emt 0:00:02]} Nf6 {[%emt 0:00:06]} 2. c4 {[%emt 0:00:04]} e6 {[%emt 0:00:05]} 3. Nf3 {[%emt 0:00:04]} Bb4+ {[%emt 0:00:15]} 4. Nbd2 {[%emt 0:00:13]} d5 {[%emt 0:00:28]} 5. Qa4+ {[%emt 0:00:08]} Nc6 {[%emt 0:00:06]} 6. e3 {[%emt 0:00:10]} a5 {[%emt 0:00:19]} 7. a3 {[%emt 0:00:10]} Be7 {[%emt 0:00:07]} 8. Qc2 {[%emt 0:00:05]} a4 {[%emt 0:00:40]} 9. Bd3 {[%emt 0:07:10]} Bd7 {[%emt 0:00:16]} 10. O-O {[%emt 0:00:49]} Na5 {[%emt 0:01:08]} 11. Ne5 {[%emt 0:02:53]} dxc4 {[%emt 0:07:46]} 12. Ndxc4 {[%emt 0:02:32]} Nb3 {[%emt 0:01:33]} 13. Rb1 {[%emt 0:00:06]} O-O {[%emt 0:14:10]} 14. Rd1 {[%emt 0:05:50]} Bb5 {[%emt 0:01:28]} 15. Nd2 {[%emt 0:05:15]} Bxd3 {[%emt 0:01:29]} 16. Nxd3 {[%emt 0:00:19]} Qd5 {[%emt 0:10:22]} 17. Nxb3 {[%emt 0:06:03]} axb3 {[%emt 0:01:02]} 18. Qe2 {[%emt 0:00:21]} Qb5 {[%emt 0:09:00]} 19. Bd2 {[%emt 0:04:15]} b6 {[%emt 0:01:10]} 20. Nc1 {[%emt 0:06:12]} Qxe2 {[%emt 0:04:22]} 21. Nxe2 {[%emt 0:00:31]} c5 {[%emt 0:00:04]} 22. Rbc1 {[%emt 0:01:39]} Rfc8 {[%emt 0:01:00]} 23. dxc5 {[%emt 0:07:25]} bxc5 {[%emt 0:00:42]} 24. Nc3 {[%emt 0:01:01]} c4 {[%emt 0:01:08]} 25. Be1 {[%emt 0:04:33]} Ng4 {[%emt 0:07:26]} 26. Rd4 {[%emt 0:00:14]} Ne5 {[%emt 0:00:37]} 27. Rcd1 {[%emt 0:01:13]} Nd3 {[%emt 0:01:19]} 28. R1xd3 {[%emt 0:00:26]} cxd3 {[%emt 0:00:04]} 29. Rxd3 {[%emt 0:00:06]} Rd8 {[%emt 0:00:18]} 30. Rxd8+ {[%emt 0:00:34]} Rxd8 {[%emt 0:01:03]} 31. Kf1 {[%emt 0:00:06]} Bxa3 {[%emt 0:03:35]} 32. bxa3 {[%emt 0:00:47]} b2 {[%emt 0:00:10]} 33. Ke2 {[%emt 0:00:26]} Rc8 {[%emt 0:00:11]} 34. Nb1 {[%emt 0:00:32]} Rc1 {[%emt 0:00:11]} 35. Nd2 {[%emt 0:00:12]} Rc2 {[%emt 0:00:11]} 0-1

[Event "Reykjavik Open 2025"]
[Site "Reykjavik"]
[Date "2025.04.13"]
[Round "6.28"]
[White "Stolyarov, Alan"]
[Black "Li, Guohao"]
[Result "0-1"]
[Annotator "ChessBase"]
[ECO "D36"]
[WhiteElo "1889"]
[BlackElo "2356"]
[PlyCount "80"]
[EventDate "2025.04.09"]
[EventType "swiss"]
[EventCountry "ISL"]
[SourceTitle "playchess.com"]
[Source "ChessBase"]
[SourceQuality "1"]
[TimeControl "40/5400+30:1800+30"]

1. d4 {[%emt 0:06:34]} d5 {[%emt 0:00:06]} 2. c4 {[%emt 0:00:07]} e6 {[%emt 0:00:06]} 3. Nc3 {[%emt 0:00:05]} Nf6 {[%emt 0:00:43]} 4. cxd5 {[%emt 0:00:22]} exd5 {[%emt 0:00:07]} 5. Bg5 {[%emt 0:00:08]} c6 {[%emt 0:00:19]} 6. e3 {[%emt 0:00:07]} Be7 {[%emt 0:00:57]} 7. Bd3 {[%emt 0:00:07]} O-O {[%emt 0:00:48]} 8. Qc2 {[%emt 0:00:32]} Nbd7 {[%emt 0:00:55]} 9. Nge2 {[%emt 0:01:29]} h6 {[%emt 0:00:35]} 10. Bh4 {[%emt 0:00:14]} Re8 {[%emt 0:00:29]} 11. O-O {[%emt 0:00:48]} Nh5 {[%emt 0:00:12]} 12. Bxe7 {[%emt 0:00:29]} Qxe7 {[%emt 0:00:03]} 13. Rab1 {[%emt 0:18:02]} a5 {[%emt 0:01:16]} 14. Na4 {[%emt 0:04:07]} Qd6 {[%emt 0:02:51]} 15. a3 {[%emt 0:02:55]} Nhf6 {[%emt 0:06:59]} 16. Ng3 {[%emt 0:04:25]} b5 {[%emt 0:04:10]} 17. Nc5 {[%emt 0:01:02]} Nxc5 {[%emt 0:00:32]} 18. dxc5 {[%emt 0:04:59]} Qe5 {[%emt 0:00:58]} 19. b4 {[%emt 0:00:53]} axb4 {[%emt 0:00:13]} 20. axb4 {[%emt 0:00:04]} Ra3 {[%emt 0:02:05]} 21. Rb3 {[%emt 0:08:47]} Ra4 {[%emt 0:01:50]} 22. Qb2 {[%emt 0:00:52]} Ng4 {[%emt 0:07:37]} 23. h3 {[%emt 0:07:15]} Qxb2 {[%emt 0:00:33]} 24. Rxb2 {[%emt 0:00:03]} Ne5 {[%emt 0:00:04]} 25. Bc2 {[%emt 0:02:30]} Ra3 {[%emt 0:00:39]} 26. Rd1 {[%emt 0:04:30]} Be6 {[%emt 0:04:56]} 27. Ne2 {[%emt 0:04:19]} Rea8 {[%emt 0:10:31]} 28. Bb3 {[%emt 0:04:12]} Ra1 {[%emt 0:01:47]} 29. Rbb1 {[%emt 0:01:53]} Rxb1 {[%emt 0:01:19]} 30. Rxb1 {[%emt 0:00:02]} Bf5 {[%emt 0:00:07]} 31. Rd1 {[%emt 0:04:27]} Ra3 {[%emt 0:07:24]} 32. Bxd5 {[%emt 0:11:02]} Bd3 {[%emt 0:07:18]} 33. Nf4 {[%emt 0:00:44]} cxd5 {[%emt 0:00:31]} 34. Nxd3 {[%emt 0:01:14]} Nxd3 {[%emt 0:00:24]} 35. c6 {[%emt 0:00:32]} Rc3 {[%emt 0:00:28]} 36. c7 {[%emt 0:00:20]} Nxb4 {[%emt 0:00:10]} 37. Rb1 {[%emt 0:02:57]} Na6 {[%emt 0:00:02]} 38. Rxb5 {[%emt 0:00:18]} Nxc7 {[%emt 0:00:02]} 39. Rb8+ {[%emt 0:00:13]} Kh7 {[%emt 0:00:02]} 40. Rd8 {[%emt 0:00:18]} Rc5 {[%emt 0:01:19]} 0-1